Cogmind - Beta 13 @@@ ROGUE MODE // 2024.04.13 @ 01:16:33 Player: Miwa Result: Destroyed self via exploding Phase Generator Performance ------------- Evolutions (2) 1000 Regions Visited (6) 1200 Robots Destroyed (42) 210 Value Destroyed (2050) 2050 Prototype IDs (2) 40 Alien Tech Used (0) 0 Bonus (1187) 1187 TOTAL SCORE: 5687 Bonus ------- High Alert Combat Kills 518 Follower Combat Kills 169 Entered Garrisons 200 Aligned with FarCom 300 Cogmind --------- Core Integrity 0/550 Matter 284/300 Energy 155/160 System Corruption 0% Temperature Cool (0) Movement Walking (120) Location -8/Garrison Parts ------- > --- POWER (1) -------- Light Nuclear Core > --- PROPULSION (3) --- Aluminum Leg Aluminum Leg Carbon-fiber Leg > --- UTILITY (5) ------ Small Storage Unit Improved Signal Interpreter ECM Suite Cloak of Protection System Shield > --- WEAPON (2) ------- Particle Gun Heavy Assault Rifle > --- INVENTORY (8) ---- Aluminum Leg Improved VTOL Module Relay Coupler [NC] (28) Relay Coupler [Swarmer] (40) Relay Coupler [Sentry] (21) Relay Coupler [Demolisher] (17) Heavy Assault Rifle Peak State ------------ > --- POWER ------------ Makeshift Power Source > --- PROPULSION ------- Flight Unit Improved VTOL Module > --- UTILITY ---------- Small Storage Unit Advanced Weight Redist. System Improved Signal Interpreter Cloak of Protection System Shield > --- WEAPON ----------- Light Assault Rifle High-powered Shotgun > --- INVENTORY -------- Deuterium Engine Nuclear Core ECM Suite Relay Coupler [NC] Relay Coupler [Swarmer] Relay Coupler [Sentry] Relay Coupler [Specialist] [Rating: 33] Favorites ----------- Power Light Nuclear Core Engine Makeshift Power Source Power Core Light Nuclear Core Propulsion Flight Unit Treads Light Treads Leg Aluminum Leg Flight Unit Flight Unit Utility Small Storage Unit Device Advanced Weight Redist. System Storage Small Storage Unit Processor Improved Signal Interpreter Hackware System Shield Weapon Light Assault Rifle Energy Gun Particle Gun Ballistic Gun Light Assault Rifle Build | -11 -10 -10 -10 -9 -8 -8 ------- Run | Yrd Mat Min Exi Min Mat Gar Slots Evolved 4 | . . . . . 4 . Power . | . . . . . . . Propulsion 1 | . . . . . 1 . Utility 3 | . . . . . 3 . Weapon . | . . . . . . . Parts Attached 63 | 7 5 5 3 . 9 34 Power 8 | 1 1 1 . . 1 4 Engine 4 | 1 1 . . . 1 1 Core 4 | . . 1 . . . 3 Reactor . | . . . . . . . Propulsion 22 | 2 2 1 . . 3 14 Treads 5 | . . . . . . 5 Leg 10 | 2 . . . . . 8 Wheel . | . . . . . . . Hover . | . . . . . . . Flight 7 | . 2 1 . . 3 1 Utility 16 | 1 1 . 2 . 4 8 Device 11 | . 1 . 2 . 2 6 Storage 1 | 1 . . . . . . Processor 2 | . . . . . 1 1 Hackware 2 | . . . . . 1 1 Protection . | . . . . . . . Artifact . | . . . . . . . Weapon 17 | 3 1 3 1 . 1 8 Energy Gun 3 | 1 . . . . . 2 Energy Cannon . | . . . . . . . Ballistic Gun 14 | 2 1 3 1 . 1 6 Ballistic Cannon . | . . . . . . . Launcher . | . . . . . . . Special Weapon . | . . . . . . . Impact Weapon . | . . . . . . . Slashing Weapon . | . . . . . . . Piercing Weapon . | . . . . . . . Special Melee Weapon . | . . . . . . . Unidentified Prototypes 2 | . . . 1 . 1 . Parts Lost 16 | . . . . . . 16 Power 3 | . . . . . . 3 Propulsion 8 | . . . . . . 8 Utility 3 | . . . . . . 3 Weapon 2 | . . . . . . 2 Highest Loss Streak 6 | . . . . . . 6 To Critical Strikes . | . . . . . . . Average Slot Usage (%) 96 | . 92 100 100 100 98 96 Engine 4 | . 14 1 . . 9 3 Core 5 | . . 12 14 14 . 5 Treads 5 | . . . . . . 7 Leg 8 | . 13 . . . . 9 Flight 10 | . 14 28 28 28 27 7 Device 13 | . 7 14 14 14 17 13 Storage 9 | . 14 14 14 14 9 9 Processor 7 | . . . . . 9 9 Hackware 10 | . . . . . 9 12 Energy Gun 1 | . . . . . . 2 Ballistic Gun 18 | . 28 28 28 28 18 15 Naked Turns . | . . . . . . . Heaviest Build 26 | 10 10 14 14 14 14 26 Greatest Support 69 | 20 26 14 14 14 22 69 Greatest Overweight (x) 1 | . . . . . . 1 Average Overweight (x) . | . . . . . . . Largest Inventory Capacity 8 | 8 8 8 8 8 8 8 Average Capacity 7 | 7 8 8 8 8 8 8 Most Carried 8 | 5 6 8 8 8 7 8 Average Carried 7 | 1 3 7 7 8 5 7 Final Capacity 8 | 8 8 8 8 8 8 8 Final Carried 8 | 2 6 8 8 8 7 7 Class Distribution -------------------- 61% | Scavenger-Mutant 23% | Mutant 15% | Scavenger-Sprinter Dominant Class ---------------- Scavenger-Mutant | -10/Materials Scavenger-Mutant | -10/Mines Scavenger-Mutant | -10/Exiles Scavenger-Mutant | -9/Mines Scavenger-Sprinter | -8/Materials Scavenger-Mutant | -8/Garrison Resources | -11 -10 -10 -10 -9 -8 -8 ----------- Run | Yrd Mat Min Exi Min Mat Gar Matter Collected 1510 | 274 118 96 . . 52 970 Remotely . | . . . . . . . Salvage Created 1700 | 59 210 209 . . 52 1170 Parts 97 | 3 13 10 . . 5 66 Haulers Intercepted 1 | . 1 . . . . . Recyclers Shooed 2 | . 1 1 . . . . Parts Field Recycled . | . . . . . . . Retrieved Matter . | . . . . . . . Parts Self-Destructed . | . . . . . . . Prevented . | . . . . . . . Kills | -11 -10 -10 -10 -9 -8 -8 ------- Run | Yrd Mat Min Exi Min Mat Gar Combat Hostiles Destroyed 36 | . 3 3 . . 1 29 Guns 36 | . 3 3 . . 1 29 Classes Destroyed 7 | 1 3 . . . 1 2 Hauler 1 | . 1 . . . . . Recycler 4 | 1 1 2 . . . . Watcher 1 | . 1 . . . . . Swarmer 13 | . 3 3 . . . 7 Grunt 15 | . . . . . . 15 Sentry 7 | . . . . . 1 6 Hunter 1 | . . . . . . 1 Best Kill Streak 5 | 1 2 2 . . 1 5 Combat Bots Only 5 | . 2 2 . . 1 5 Max Kills in Single Turn 2 | 1 1 2 . . 1 1 Gunslinging 1 | . . 1 . . . . Exploded . | . . . . . . . Melee . | . . . . . . . Uniques/NPCs Destroyed . | . . . . . . . Combat | -11 -10 -10 -10 -9 -8 -8 -------- Run | Yrd Mat Min Exi Min Mat Gar Hostile Shots Fired 308 | . 34 27 . 2 19 226 Missed 93 | . 8 13 . 2 8 62 Damage Taken 2933 | . 205 118 . . 155 2455 Core 623 | . 42 16 . . 43 522 Absorbed by Shields 24 | . . . . . . 24 Regen/Repaired (Parts) 9 | . 9 . . . . . Core Remaining (%) 88 | 100 . . . 76 . . Volleys Fired 234 | 2 34 23 . . 17 158 Largest 2 | 2 2 2 . . 2 2 Hottest 88 | 40 40 40 . . 40 88 Shots Fired 447 | 4 68 46 . . 34 295 Gun 447 | 4 68 46 . . 34 295 Cannon . | . . . . . . . Launcher . | . . . . . . . Special . | . . . . . . . Kinetic 412 | 4 68 46 . . 34 260 Thermal 35 | . . . . . . 35 Explosive . | . . . . . . . Electromagnetic . | . . . . . . . Robot Hit Streak 15 | 2 5 4 . . 7 15 Robot Miss Streak 6 | 2 5 2 . . 5 6 Penetration Max . | . . . . . . . Secondary Targets 3 | . . 1 . . . 2 Max Gunslinging Chain 1 | . . 1 . . . 1 Shots Hit Robots 260 | 2 30 27 . . 19 182 Core Hits 103 | 2 11 9 . . 3 78 Critical Kills 1 | . . . . . . 1 Critical Parts Destroyed 4 | . 1 1 . . . 2 Critical Strikes 6 | . 1 1 . . . 4 Burn 1 | . . . . . . 1 Destroy 5 | . 1 1 . . . 3 Melee Attacks . | . . . . . . . Impact . | . . . . . . . Slashing . | . . . . . . . Piercing . | . . . . . . . Sneak Attacks . | . . . . . . . Combat Hostiles . | . . . . . . . Follow-up Attacks . | . . . . . . . Damage Inflicted 3085 | 17 268 216 . . 154 2430 Guns 3085 | 17 268 216 . . 154 2430 Cannons . | . . . . . . . Explosions . | . . . . . . . Melee . | . . . . . . . Ramming . | . . . . . . . Kinetic 2838 | 17 268 216 . . 154 2183 Thermal 247 | . . . . . . 247 Explosive . | . . . . . . . Electromagnetic . | . . . . . . . Impact . | . . . . . . . Slashing . | . . . . . . . Piercing . | . . . . . . . Highest Corruption . | . . . . . . . Average Corruption . | . . . . . . . Corruption Purged . | . . . . . . . Corruption Blocked . | . . . . . . . Overload Shots . | . . . . . . . Overflow Damage . | . . . . . . . Projectiles . | . . . . . . . Explosions . | . . . . . . . Melee . | . . . . . . . Knockbacks . | . . . . . . . Impact . | . . . . . . . Kinetic . | . . . . . . . Secondary . | . . . . . . . Self-Inflicted Damage 123 | . . . . . . 123 Shots 1 | . . . . . . 1 Rammed . | . . . . . . . Targets Rammed . | . . . . . . . Kicked . | . . . . . . . Crushed . | . . . . . . . Highest Temperature 159 | . 10 16 . . 26 159 Average Temperature 27 | . 5 8 . . 9 35 Received Heat Transfer 1215 | . 6 12 . . 72 1125 Siege Activations . | . . . . . . . Robots Corrupted . | . . . . . . . Combat Hostiles . | . . . . . . . Parts Fried . | . . . . . . . Impact Corruptions . | . . . . . . . Robots Melted . | . . . . . . . Combat Hostiles . | . . . . . . . Parts Melted 1 | . . . . . . 1 Heat Transferred 666 | . . . . . . 666 Parts Sabotaged . | . . . . . . . Parts Stolen . | . . . . . . . Parts Stripped . | . . . . . . . Power Chain Reactions . | . . . . . . . Alert | -11 -10 -10 -10 -9 -8 -8 ------- Run | Yrd Mat Min Exi Min Mat Gar Peak Influence 2421 | 5 225 312 . 45 133 2421 Initial 87 | . 3 87 . . 17 86 Average 791 | 2 96 220 . 17 64 977 Maximum Alert Level 5 | . 1 1 . . . 5 Low Security (%) 19 | 100 91 45 . 100 100 3 Level 1 27 | . 8 54 . . . 28 Level 2 12 | . . . . . . 16 Level 3 10 | . . . . . . 12 Level 4 12 | . . . . . . 15 Level 5 18 | . . . . . . 23 High Security . | . . . . . . . Max Security . | . . . . . . . Squads Dispatched 2 | . 1 1 . . . . Investigation 1 | . . 1 . . . . Extermination . | . . . . . . . Reinforcement 1 | . 1 . . . . . Assault . | . . . . . . . Garrison . | . . . . . . . Intercept . | . . . . . . . Searches Triggered . | . . . . . . . Construction Impeded . | . . . . . . . Haulers Reinforced . | . . . . . . . Active Scanning Responses . | . . . . . . . Cargo Convoy Interrupts . | . . . . . . . Stealth | -11 -10 -10 -10 -9 -8 -8 --------- Run | Yrd Mat Min Exi Min Mat Gar Distress Signals 4 | . 1 . . . 3 . Communications Jammed . | . . . . . . . Distress Signals . | . . . . . . . Times Spotted 83 | . 12 13 . 2 10 46 Peak Tracking Total 11 | . 5 4 . 2 6 11 Tactical Retreats 15 | . 1 4 . 1 2 7 Traps | -11 -10 -10 -10 -9 -8 -8 ------- Run | Yrd Mat Min Exi Min Mat Gar Traps Triggered 4 | . . . . . . 4 Indirectly . | . . . . . . . Trap Hack Attempts . | . . . . . . . Triggered . | . . . . . . . Disarmed . | . . . . . . . Reprogrammed 4 | . . . . . 4 . Reused . | . . . . . . . Traps Extracted . | . . . . . . . Installed . | . . . . . . . Triggered . | . . . . . . . Machines | -11 -10 -10 -10 -9 -8 -8 ---------- Run | Yrd Mat Min Exi Min Mat Gar Machines Disabled 5 | . . . . . . 5 Max in Single Turn 2 | . . . . . . 2 Garrison Relay 4 | . . . . . . 4 Phase Generator 1 | . . . . . . 1 Machines Repaired . | . . . . . . . Machines Dismantled . | . . . . . . . Machines Sabotaged . | . . . . . . . Overloaded Fab Kills . | . . . . . . . Hacking | -11 -10 -10 -10 -9 -8 -8 --------- Run | Yrd Mat Min Exi Min Mat Gar Machines Accessed 17 | . 5 3 3 . 4 2 Terminals 9 | . 4 . . . 3 2 Fabricators . | . . . . . . . Repair Stations 1 | . 1 . . . . . Recycling Units . | . . . . . . . Scanalyzers . | . . . . . . . Garrison Access 1 | . . . . . 1 . Total Hacks 64 | . 15 3 19 . 21 6 Successful 42 | . 9 3 19 . 9 2 Failed 22 | . 6 . . . 12 4 Catastrophic 2 | . . . . . 1 1 Database Lockouts . | . . . . . . . Manual 28 | . 10 . 1 . 14 3 Terminals 38 | . 12 . . . 20 6 Fabricators . | . . . . . . . Repair Stations 3 | . 3 . . . . . Recycling Units . | . . . . . . . Scanalyzers . | . . . . . . . Garrison Access 1 | . . . . . 1 . Terminal Hacks 27 | . 1 3 19 . 2 2 Record 19 | . . . 19 . . . Open Door 4 | . . 3 . . . 1 Emergency Access Points 1 | . . . . . . 1 Locate Traps 2 | . 1 . . . 1 . Reprogram Traps 1 | . . . . . 1 . Fabricator Hacks . | . . . . . . . Repair Station Hacks 2 | . 2 . . . . . Scan Component 1 | . 1 . . . . . Repair 1 | . 1 . . . . . Recycling Unit Hacks . | . . . . . . . Scanalyzer . | . . . . . . . Garrison Access Hacks 1 | . . . . . 1 . Unlock Access 1 | . . . . . 1 . Unauthorized Hacks 12 | . 6 . . . 6 . Terminals 12 | . 6 . . . 6 . Assimilate 5 | . 2 . . . 3 . Botnet 7 | . 4 . . . 3 . Fabricators . | . . . . . . . Repair Stations . | . . . . . . . Recycling Units . | . . . . . . . Scanalyzers . | . . . . . . . Garrison Access . | . . . . . . . Data Cores Recovered . | . . . . . . . Used . | . . . . . . . Hacking Detections 10 | . 4 . . . 4 2 Full Trace Events 1 | . . . . . . 1 Feedback Events . | . . . . . . . Feedback Blocked . | . . . . . . . Robot Schematics Acquired . | . . . . . . . Robots Built . | . . . . . . . Authchips . | . . . . . . . Time . | . . . . . . . Total Robot Build Rating . | . . . . . . . Part Schematics Acquired . | . . . . . . . Parts Built . | . . . . . . . Authchips . | . . . . . . . Time . | . . . . . . . Total Part Build Rating . | . . . . . . . Parts Repaired 1 | . 1 . . . . . Time 26 | . 26 . . . . . Parts Recycled . | . . . . . . . Recycled Matter . | . . . . . . . Retrieved Matter . | . . . . . . . Retrieved Components . | . . . . . . . Parts Scanalyzed . | . . . . . . . Part Schematics Acquired . | . . . . . . . Parts Damaged . | . . . . . . . Bothacking | -11 -10 -10 -10 -9 -8 -8 ------------ Run | Yrd Mat Min Exi Min Mat Gar Used RIF Installer . | . . . . . . . Robots Hacked . | . . . . . . . Non-combat . | . . . . . . . Combat . | . . . . . . . Robot Hacks Applied . | . . . . . . . Relay Couplers Released 16 | . . . . . . 16 Machine Destruction 16 | . . . . . . 16 Fabnet Peak Effective % . | . . . . . . . Robots Rewired . | . . . . . . . Allies Hacked . | . . . . . . . Hacks Repelled . | . . . . . . . Allies | -11 -10 -10 -10 -9 -8 -8 -------- Run | Yrd Mat Min Exi Min Mat Gar Total Allies 7 | . . 3 . . 2 2 Largest Group 2 | . . 2 . . 2 2 Highest-Rated Group 70 | . . 46 . . 20 70 Highest-Rated Ally 39 | . . 31 . . 10 39 Total Orders . | . . . . . . . Ally Attacks 34 | . . 4 . . . 30 Total Damage 518 | . . 41 . . . 477 Kills 6 | . . 1 . . . 5 Allies Corrupted . | . . . . . . . Allies Melted . | . . . . . . . Intel | -11 -10 -10 -10 -9 -8 -8 ------- Run | Yrd Mat Min Exi Min Mat Gar Robot Analysis Total . | . . . . . . . Derelict Logs Recovered 3 | . . 2 . 1 . . Drone Launches . | . . . . . . . Drone Recoveries . | . . . . . . . Exploration | -11 -10 -10 -10 -9 -8 -8 ------------- Run | Yrd Mat Min Exi Min Mat Gar Turns Passed 4852 | 67 381 373 101 28 188 3714 Spaces Moved 3554 | 49 437 739 256 76 258 1739 Core 18 | 16 . . . . . 2 Treads 484 | . . . . . . 484 Legs 1019 | 33 96 . . . . 890 Wheels . | . . . . . . . Hover . | . . . . . . . Flight 2033 | . 341 739 256 76 258 363 Fastest Speed 32 | 50 37 37 37 37 32 32 Average Speed 76 | 97 55 37 37 37 32 112 Slowest Speed 160 | 120 120 37 37 37 34 160 Overloaded Moves . | . . . . . . . Propulsion Burnouts . | . . . . . . . Robots Hopped 11 | . . 9 . . 2 . Cave-ins Triggered . | . . . . . . . Exploration Rate (%) 47 | 4 63 96 43 25 22 78 Regions Visited 6 Branch Regions 3 Pre-discovered Areas . | . . . . . . . Known Exits Taken 1 | . . . . . 1 . Unknown Exits Taken 5 | 1 1 1 1 1 . . Scrap Searched 1 | . . 1 . . . . Spaces Dug . | . . . . . . . Terrain Destroyed 23 | . . . . . . 23 Melee . | . . . . . . . Projectile . | . . . . . . . AOE 23 | . . . . . . 23 Terrain Rammed . | . . . . . . . Walls Destroyed . | . . . . . . . Machines Disabled . | . . . . . . . Actions | -11 -10 -10 -10 -9 -8 -8 --------- Run | Yrd Mat Min Exi Min Mat Gar Total 5264 | 64 521 795 260 75 330 3219 Wait 1316 | . 32 24 . . 42 1218 Move 3526 | 48 436 720 255 75 253 1739 Hop 11 | . . 9 . . 2 . Pick Up 50 | 7 10 6 1 . 5 21 Fast Attach 7 | 1 . . . . . 6 Attach 25 | 5 1 . . . 4 15 Detach 3 | . . . . . . 3 Swap 31 | 1 4 5 3 . 5 13 Drop 31 | . 4 8 1 . 2 16 Fire 234 | 2 34 23 . . 17 158 Melee . | . . . . . . . Ram . | . . . . . . . Kick . | . . . . . . . Crush . | . . . . . . . Escape Stasis 30 | . . . . . . 30 Rewire . | . . . . . . . Trap . | . . . . . . . Miscellaneous . | . . . . . . . Route ------- -11/Scrapyard -10/Materials (discovered 3 exits: [*Mat] / *Min x2) -10/Mines (discovered 3 exits: [*Mat x2] / *Exi) -10/Exiles -9/Mines -8/Materials (discovered 2 exits: Fac / Gar) -8/Garrison (discovered 4 exits: *Mat x4) History --------- Turn | Location | Event 7 | -11/Scrapyard | Discovered new exit (range 15) 68 | -11/Scrapyard | Entered Materials 281 | -10/Materials | Discovered new exit (range 15) 314 | -10/Materials | Repaired Flight Unit 329 | -10/Materials | Discovered new exit (range 11) 444 | -10/Materials | Discovered new exit (range 8) 449 | -10/Materials | Entered Mines 456 | -10/Mines | Learned 2 Materials zone layouts 463 | -10/Mines | Met a Derelict bent on vengeance 483 | -10/Mines | Met a Derelict who couldn't figure out how to use a Trap Extractor 508 | -10/Mines | Deemed a non-threat by the Exiles lab entrance 508 | -10/Mines | Discovered new exit (range 5) 548 | -10/Mines | Build established: Scavenger-Mutant 570 | -10/Mines | Discovered new exit (range 13) 733 | -10/Mines | Escorted by a lone wolf Derelict 747 | -10/Mines | Learned Materials terminal intel 751 | -10/Mines | Found the Drone Emporium 768 | -10/Mines | Discovered new exit (range 10) 774 | -10/Mines | Met a Derelict shopkeep closing up shop 822 | -10/Mines | Entered Exiles 832 | -10/Exiles | Met 8R-AWN 838 | -10/Exiles | Met EX-HEX 850 | -10/Exiles | Met EX-BIN 854 | -10/Exiles | Aligned with FarCom system 855 | -10/Exiles | Given EX-Vault access code 879 | -10/Exiles | Opened EX-Vault 883 | -10/Exiles | Found Prototype Device 884 | -10/Exiles | Identified Cloak of Protection 895 | -10/Exiles | Warned to stay clear of 0b10 Research branches 918 | -10/Exiles | Discovered new exit (range 14) 923 | -10/Exiles | Left Exiles lab with Cloak of Protection 923 | -10/Exiles | Entered Mines 940 | -9/Mines | Learned 4 Materials zone layouts 943 | -9/Mines | Discovered new exit (range 15) 951 | -9/Mines | Entered Materials 951 | -8/Materials | Evolved 4 slots: Propulsion x1, Utility x3 952 | -8/Materials | Identified exit to Factory 953 | -8/Materials | Loaded intel: 12 terminal locations 1131 | -8/Materials | Identified exit to Garrison 1139 | -8/Materials | Entered Garrison 1139 | -8/Garrison | Accompanied by 2 allies 1202 | -8/Garrison | Triggered checkpoint 1214 | -8/Garrison | Triggered checkpoint 1218 | -8/Garrison | Triggered checkpoint 1222 | -8/Garrison | Triggered checkpoint 1232 | -8/Garrison | Discovered new exit (range 12) 1254 | -8/Garrison | Triggered checkpoint 1565 | -8/Garrison | Build established: Scavenger-Sprinter 1724 | -8/Garrison | Triggered checkpoint 2096 | -8/Garrison | Build established: Mutant 2652 | -8/Garrison | Triggered checkpoint 2700 | -8/Garrison | Lost 3 parts (1p2n) 2751 | -8/Garrison | Discovered new exit (range 15) 2970 | -8/Garrison | Build established: Scavenger-Mutant 3138 | -8/Garrison | Triggered checkpoint 3186 | -8/Garrison | Garrison Relay disabled 3234 | -8/Garrison | Discovered new exit (range 10) 3246 | -8/Garrison | Identified exit to Materials 3388 | -8/Garrison | Triggered checkpoint 3400 | -8/Garrison | Core integrity fell below 50% 3618 | -8/Garrison | Rescued a captive Derelict 3641 | -8/Garrison | Rescued a captive Derelict 3929 | -8/Garrison | Core integrity fell below 20% 3963 | -8/Garrison | Lost 6 parts (2p2n1u1w) 3973 | -8/Garrison | Discovered exit to Materials (range 6) 4020 | -8/Garrison | Triggered checkpoint 4227 | -8/Garrison | Garrison Relay disabled 4397 | -8/Garrison | Garrison Relay disabled 4853 | -8/Garrison | Phase Generator disabled 4853 | -8/Garrison | Destroyed self via exploding Phase Generator Last Messages --------------- ALERT: Garrison interior compromised. Destroyed Wheel. M-14 Sweeper destroyed. Acquired 30 matter. M-14 Sweeper destroyed. Triggered Tesla Bomb Trap. A bubble of electromagnetic force engulfs the area. Storage Shell breached. Acquired 13 matter. Connecting with Garrison Terminal... ALERT: Suspicious activity at Terminal G002. Transmitting hostile system tracking data. Hacking Suite destroyed. Y-45 Defender destroyed. Acquired 24 matter. Dropped Hvy. Assault Rifle. Acquired Hvy. Assault Rifle. ALERT: Garrison interior compromised. Phase Generator explodes. Machine disabled. Map ----- +----------------------------------------------------+ | | | | | | | | | | | | | | | | | | | | | ?????????????????????????????????????????????? | | ?????????????????????????????????????????????? | | ?????????????????????????????????????????????? | | ?????????????????????????????????????????????? | | ????????????????????#######??????????????????? | | ????????????????????# #T# #??????????????????? | | ????????????????????#[!%%!#??????????????????? | | ????????????????????###%###??????????????????? | | ?????????#######??????#=#????????????????????? | | ?????????# ######## #############????????? | | ?????????# < + # #????????? | | ?????????# ######## ######## #????????? | | ?????????# ###?????## ##????# #????????? | | ?????????# #???????# # ###### ##????????? | | ?????????# #?????### ######?????????? | | ?????????# #?????# @ #??????????????? | | ?????????# #?????# # #??????????????? | | ?????????# #?????# ##????????????? | | ???#?#???# #?????## " "#???????????? | | ?????????# #?????# # "###???????????? | | ?+?????+?# #?????#?# " #????????????? | | ?????????# #??????? " "##????????????? | | ???#?#???# #??????# " ""#?????????????? | | ?????????# ####### # # # #?????????????? | | ????#????# #### ########?????????????? | | ?????????# #??# #????????????????????? | | ?????????# #### #??# #????????????????????? | | ?????????# #??# #### #????????????????????? | | ?????????# #??# ## #????????????????????? | | ?????????# #??# # #????????????????????? | | ?????????# #??# ####????????????????????? | | ?????????# !#### ###???????????????????????? | | ?????????# ! + =+ #?????????????????????????? | | ?????????# ####* #?????????????????????????? | | ?????????# #??# ###???????????????????????? | | ?????????# #??# !#!#???????????????????????? | | ?????????# #??# !!"#???????????????????????? | | ?????????# #??# !"#???????????????????????? | | ?????????# #??# "#???????????????????????? | | ?????????# ^^#??# #"#???????????????????????? | +----------------------------------------------------+ Best States ------------- Heat Dissipation 31 Energy Generation 15 Energy Capacity 275 Matter Stores 300 Matter Capacity 300 Sight Range 16 Terrain Scan Density 10 ECM Strength 1 Cloak Strength 5 Additional Mass Support 9 Evasion (%) 71 Recoil Reduction 3 Offensive Hacking 10 Defensive Hacking 10 Item Schematics ----------------- None Robot Schematics ------------------ None Fabricated ------------ Nothing Alien Tech Used ----------------- None Achievements -------------- None Challenges ------------ None Game ------ Seed SmartbombGhostMatter Manual? 0 Play Time 01:07:06 Cumulative 34.4 hours Start 2024.04.10 @ 04:52:18 End 2024.04.13 @ 01:16:33 Sessions 3 Manual Loads 0 Difficulty Rogue Special Mode None Game No. 49 Rogue 49 Adventurer 0 Explorer 0 Win Type - Total 0 Types 0/0/0/0/0/0/0/0/0 Lore% 26 Gallery% 29 Achievement% 28 Wizard Run 0 Options --------- Layout 1 ASCII 0 Keyboard 0 Movement Mouse Keybinds 0 Fullscreen 1 Font 28/SmallcapsGlow Map View 55x47 Zoom Use 0% Tactical HUD 0 Map Filters NONE Filters NONE Steam 1 RUN: 85d74a56-c934-4828-9c28-b72b243d99f0